[Event "*** Titled Tuesday Blitz"]
[Site "Chess.com"]
[Date "2021.03.30"]
[Round "9"]
[White "NikolaN98"]
[Black "bolence16"]
[Result "1-0"]
[WhiteElo "2661"]
[BlackElo "2440"]
[TimeControl "180+1"]
[EndTime "11:47:25 PDT"]
[Termination "NikolaN98 won by resignation"]

1. e4 {[%clk 0:03:00.9]} 1... e5 {[%clk 0:03:00]} 2. Nf3 {[%clk 0:02:57.3]} 2...
Nc6 {[%clk 0:03:00.2]} 3. Bc4 {[%clk 0:02:56.8]} 3... Nf6 {[%clk 0:03:00]} 4. d3
{[%clk 0:02:56.7]} 4... Be7 {[%clk 0:03:00]} 5. O-O {[%clk 0:02:56.3]} 5... O-O
{[%clk 0:03:00.5]} 6. a4 {[%clk 0:02:55.8]} 6... d5 {[%clk 0:02:59.2]} 7. exd5
{[%clk 0:02:55.6]} 7... Nxd5 {[%clk 0:03:00.1]} 8. Re1 {[%clk 0:02:54.6]} 8...
Bg4 {[%clk 0:02:59]} 9. c3 {[%clk 0:02:45.4]} 9... Re8 {[%clk 0:02:21.8]} 10. a5
{[%clk 0:02:43.1]} 10... a6 {[%clk 0:02:21.1]} 11. Nbd2 {[%clk 0:02:39.4]} 11...
Bc5 {[%clk 0:02:12]} 12. Qb3 {[%clk 0:02:33.7]} 12... Be6 {[%clk 0:01:31.8]} 13.
Ne4 {[%clk 0:02:24.4]} 13... b6 {[%clk 0:01:20.3]} 14. Nxc5 {[%clk 0:02:08.7]}
14... bxc5 {[%clk 0:01:20.4]} 15. Nxe5 {[%clk 0:02:04.7]} 15... Nxe5 {[%clk
0:01:18.5]} 16. Rxe5 {[%clk 0:02:05.6]} 16... Rb8 {[%clk 0:00:57.9]} 17. Qd1
{[%clk 0:01:49.4]} 17... Qd6 {[%clk 0:00:56.1]} 18. Re1 {[%clk 0:01:46.2]} 18...
Bg4 {[%clk 0:00:53.4]} 19. f3 {[%clk 0:01:42.1]} 19... Bf5 {[%clk 0:00:47.1]}
20. Re2 {[%clk 0:01:13.7]} 20... h6 {[%clk 0:00:38.3]} 21. Qe1 {[%clk
0:01:08.3]} 21... Bd7 {[%clk 0:00:37.6]} 22. Rxe8+ {[%clk 0:00:57.3]} 22... Rxe8
{[%clk 0:00:37]} 23. Qf2 {[%clk 0:00:57.6]} 23... Bb5 {[%clk 0:00:35.1]} 24.
Bxd5 {[%clk 0:00:51.7]} 24... Qxd5 {[%clk 0:00:27.8]} 25. c4 {[%clk 0:00:51.7]}
25... Bxc4 {[%clk 0:00:25.4]} 26. dxc4 {[%clk 0:00:51.7]} 26... Qxc4 {[%clk
0:00:26]} 27. Be3 {[%clk 0:00:48.6]} 27... Qd3 {[%clk 0:00:24.3]} 28. Re1 {[%clk
0:00:44.2]} 28... c4 {[%clk 0:00:23.1]} 29. Qd2 {[%clk 0:00:40.6]} 29... Rb8
{[%clk 0:00:20.2]} 30. Qxd3 {[%clk 0:00:39.3]} 30... cxd3 {[%clk 0:00:21.1]} 31.
Bd4 {[%clk 0:00:39.7]} 31... Rb5 {[%clk 0:00:21]} 32. Bc3 {[%clk 0:00:39.3]}
32... c5 {[%clk 0:00:21.3]} 33. Kf2 {[%clk 0:00:39]} 33... c4 {[%clk 0:00:20.2]}
34. Re8+ {[%clk 0:00:38.9]} 34... Kh7 {[%clk 0:00:19.9]} 35. Ke3 {[%clk
0:00:39.5]} 35... Rd5 {[%clk 0:00:18.9]} 36. Re7 {[%clk 0:00:37.8]} 36... Kg6
{[%clk 0:00:16.3]} 37. Re4 {[%clk 0:00:37.5]} 37... Rc5 {[%clk 0:00:08.9]} 38.
Re5 {[%clk 0:00:30]} 38... Rc6 {[%clk 0:00:08.6]} 39. Kd4 {[%clk 0:00:24.5]}
39... f6 {[%clk 0:00:07.7]} 40. Rc5 {[%clk 0:00:24.1]} 40... Rd6+ {[%clk
0:00:07.5]} 41. Rd5 {[%clk 0:00:24.2]} 41... Re6 {[%clk 0:00:08]} 42. Kxc4
{[%clk 0:00:24]} 42... Re2 {[%clk 0:00:08.6]} 43. Rxd3 {[%clk 0:00:22.4]} 43...
Rxg2 {[%clk 0:00:09.2]} 44. Rd6 {[%clk 0:00:20.8]} 44... Rxh2 {[%clk 0:00:09.2]}
45. Rxa6 {[%clk 0:00:20.9]} 45... Rh1 {[%clk 0:00:09]} 46. b4 {[%clk 0:00:19.6]}
46... h5 {[%clk 0:00:09.4]} 47. Ra8 {[%clk 0:00:19.4]} 47... h4 {[%clk
0:00:09.8]} 48. a6 {[%clk 0:00:19.8]} 48... h3 {[%clk 0:00:10.2]} 49. a7 {[%clk
0:00:20.4]} 49... Rh2 {[%clk 0:00:07.6]} 50. Rh8 {[%clk 0:00:20.8]} 50... Ra2
{[%clk 0:00:07.8]} 51. a8=Q {[%clk 0:00:21.2]} 51... Rxa8 {[%clk 0:00:07.8]} 52.
Rxa8 {[%clk 0:00:22]} 52... Kf5 {[%clk 0:00:08.2]} 53. Rh8 {[%clk 0:00:22.4]}
1-0

[Event "*** Titled Tuesday Blitz"]
[Site "Chess.com"]
[Date "2021.03.30"]
[Round "9"]
[White "retropwr"]
[Black "AEMEffi"]
[Result "1-0"]
[WhiteElo "2428"]
[BlackElo "2260"]
[TimeControl "180+1"]
[EndTime "11:47:25 PDT"]
[Termination "retropwr won on time"]

1. c4 {[%clk 0:03:00.9]} 1... Nf6 {[%clk 0:02:57.7]} 2. Nf3 {[%clk 0:03:00.7]}
2... c6 {[%clk 0:02:57.2]} 3. Nc3 {[%clk 0:02:56.5]} 3... d5 {[%clk 0:02:58.1]}
4. e3 {[%clk 0:02:56.9]} 4... a6 {[%clk 0:02:57]} 5. Be2 {[%clk 0:02:47.5]} 5...
g6 {[%clk 0:02:56.9]} 6. O-O {[%clk 0:02:45.1]} 6... Bg7 {[%clk 0:02:57.5]} 7.
d4 {[%clk 0:02:34.2]} 7... O-O {[%clk 0:02:57.8]} 8. b3 {[%clk 0:02:32.2]} 8...
b5 {[%clk 0:02:57.5]} 9. Bb2 {[%clk 0:02:27]} 9... dxc4 {[%clk 0:02:57.6]} 10.
bxc4 {[%clk 0:02:26.7]} 10... b4 {[%clk 0:02:58.5]} 11. Na4 {[%clk 0:02:25.7]}
11... a5 {[%clk 0:02:59]} 12. Qb3 {[%clk 0:02:17.1]} 12... Ne4 {[%clk
0:02:58.2]} 13. Rfd1 {[%clk 0:02:13.9]} 13... Na6 {[%clk 0:02:34.9]} 14. c5
{[%clk 0:02:06.5]} 14... Be6 {[%clk 0:02:33.4]} 15. Bc4 {[%clk 0:02:05.8]} 15...
Bxc4 {[%clk 0:02:08.3]} 16. Qxc4 {[%clk 0:02:06.7]} 16... Nc7 {[%clk 0:01:43.3]}
17. Ne5 {[%clk 0:02:02.8]} 17... Qe8 {[%clk 0:01:19.4]} 18. f3 {[%clk
0:01:56.8]} 18... Nf6 {[%clk 0:01:11]} 19. e4 {[%clk 0:01:52.7]} 19... e6 {[%clk
0:00:58.6]} 20. a3 {[%clk 0:01:49.6]} 20... Rb8 {[%clk 0:00:53.7]} 21. Nb6
{[%clk 0:01:47.7]} 21... Bh6 {[%clk 0:00:32.2]} 22. Bc1 {[%clk 0:01:33.9]} 22...
Bxc1 {[%clk 0:00:29.6]} 23. Rdxc1 {[%clk 0:01:34.8]} 23... bxa3 {[%clk
0:00:20.8]} 24. Rxa3 {[%clk 0:01:34.8]} 24... Na8 {[%clk 0:00:21.5]} 25. Rb1
{[%clk 0:01:27]} 25... Nxb6 {[%clk 0:00:20.5]} 26. cxb6 {[%clk 0:01:24.1]} 26...
Nd7 {[%clk 0:00:19.8]} 27. Qxc6 {[%clk 0:01:17]} 27... Nxe5 {[%clk 0:00:09.4]}
28. Qxe8 {[%clk 0:01:17.9]} 28... Rfxe8 {[%clk 0:00:09.1]} 29. dxe5 {[%clk
0:01:17.5]} 29... Rb7 {[%clk 0:00:07]} 30. Rxa5 {[%clk 0:01:17.1]} 30... Reb8
{[%clk 0:00:07.6]} 31. Ra6 {[%clk 0:01:13]} 31... Kf8 {[%clk 0:00:07.6]} 32. Kf2
{[%clk 0:01:12.6]} 32... Ke7 {[%clk 0:00:08.2]} 33. Ra7 {[%clk 0:01:07.1]} 33...
Kd7 {[%clk 0:00:08.6]} 34. Rxb7+ {[%clk 0:01:05.7]} 34... Rxb7 {[%clk
0:00:09.5]} 35. Ke3 {[%clk 0:01:04.4]} 35... Kc6 {[%clk 0:00:09.1]} 36. Kf4
{[%clk 0:00:59.9]} 36... h6 {[%clk 0:00:09.6]} 37. h4 {[%clk 0:00:51.5]} 37...
Rxb6 {[%clk 0:00:09.4]} 38. Rxb6+ {[%clk 0:00:50.8]} 38... Kxb6 {[%clk
0:00:10.3]} 39. h5 {[%clk 0:00:51.3]} 39... Kc6 {[%clk 0:00:09.4]} 40. hxg6
{[%clk 0:00:46.1]} 40... fxg6 {[%clk 0:00:10.3]} 41. Ke3 {[%clk 0:00:30.5]}
41... Kc5 {[%clk 0:00:11.2]} 42. Kd3 {[%clk 0:00:28.8]} 42... g5 {[%clk
0:00:10.7]} 43. g3 {[%clk 0:00:25.6]} 43... h5 {[%clk 0:00:10.5]} 44. f4 {[%clk
0:00:23.5]} 44... g4 {[%clk 0:00:04.6]} 45. f5 {[%clk 0:00:20.5]} 45... exf5
{[%clk 0:00:04.3]} 46. exf5 {[%clk 0:00:20.1]} 46... Kd5 {[%clk 0:00:05.2]} 47.
e6 {[%clk 0:00:20.1]} 47... Kd6 {[%clk 0:00:05.1]} 48. Ke4 {[%clk 0:00:20.1]}
48... Ke7 {[%clk 0:00:05]} 49. Ke3 {[%clk 0:00:15.4]} 49... Kf6 {[%clk
0:00:04.2]} 50. Kf4 {[%clk 0:00:15.7]} 50... Ke7 {[%clk 0:00:01.7]} 51. Kg5
{[%clk 0:00:16.1]} 1-0

[Event "*** Titled Tuesday Blitz"]
[Site "Chess.com"]
[Date "2021.03.30"]
[Round "9"]
[White "Kostukov_Alex"]
[Black "Kislov_Oleg"]
[Result "0-1"]
[WhiteElo "2317"]
[BlackElo "2484"]
[TimeControl "180+1"]
[EndTime "11:47:27 PDT"]
[Termination "Kislov_Oleg won on time"]

1. g3 {[%clk 0:02:59.9]} 1... d5 {[%clk 0:02:59.5]} 2. Bg2 {[%clk 0:02:53.1]}
2... Nf6 {[%clk 0:02:58.8]} 3. d3 {[%clk 0:02:53.8]} 3... c6 {[%clk 0:02:59.3]}
4. e4 {[%clk 0:02:53.9]} 4... dxe4 {[%clk 0:02:57.7]} 5. dxe4 {[%clk 0:02:54.8]}
5... Qxd1+ {[%clk 0:02:57.3]} 6. Kxd1 {[%clk 0:02:54.3]} 6... e5 {[%clk
0:02:57.4]} 7. f3 {[%clk 0:02:54.8]} 7... Bc5 {[%clk 0:02:50.4]} 8. Nd2 {[%clk
0:02:51.8]} 8... Be6 {[%clk 0:02:45.3]} 9. Bh3 {[%clk 0:02:52]} 9... Ke7 {[%clk
0:02:31.9]} 10. Bxe6 {[%clk 0:02:51]} 10... Kxe6 {[%clk 0:02:32.3]} 11. Nh3
{[%clk 0:02:51.9]} 11... h6 {[%clk 0:02:31.9]} 12. Nb3 {[%clk 0:02:49]} 12...
Bb6 {[%clk 0:02:29.6]} 13. Ke2 {[%clk 0:02:47.8]} 13... Nbd7 {[%clk 0:02:21]}
14. Be3 {[%clk 0:02:47]} 14... Rhd8 {[%clk 0:02:16.4]} 15. Rhd1 {[%clk
0:02:42.2]} 15... Ne8 {[%clk 0:01:57.9]} 16. Nf2 {[%clk 0:02:32.9]} 16... Nd6
{[%clk 0:01:50.2]} 17. Nd2 {[%clk 0:02:32.8]} 17... Bxe3 {[%clk 0:01:43.2]} 18.
Kxe3 {[%clk 0:02:32.8]} 18... Nc5 {[%clk 0:01:43.8]} 19. b4 {[%clk 0:01:55.5]}
19... Na4 {[%clk 0:01:40.8]} 20. Nd3 {[%clk 0:01:49.5]} 20... Nc3 {[%clk
0:01:31.4]} 21. Rf1 {[%clk 0:01:44]} 21... b6 {[%clk 0:01:13]} 22. a4 {[%clk
0:01:35]} 22... a5 {[%clk 0:01:10.6]} 23. Ra3 {[%clk 0:01:20.3]} 23... axb4
{[%clk 0:01:10.6]} 24. Nxb4 {[%clk 0:01:18.4]} 24... Ndb5 {[%clk 0:01:00.5]} 25.
Rb3 {[%clk 0:00:44.2]} 25... Rxa4 {[%clk 0:01:00.3]} 26. Nxc6 {[%clk 0:00:40.8]}
26... Rc8 {[%clk 0:00:55.9]} 27. Nb4 {[%clk 0:00:36.4]} 27... Nd4 {[%clk
0:00:55]} 28. Rb2 {[%clk 0:00:33]} 28... Rxb4 {[%clk 0:00:53.7]} 29. Rxb4 {[%clk
0:00:23.4]} 29... Nxc2+ {[%clk 0:00:52.4]} 30. Kf2 {[%clk 0:00:18.1]} 30... Nxb4
{[%clk 0:00:51.6]} 31. Ra1 {[%clk 0:00:08.5]} 31... Nca2 {[%clk 0:00:51.2]} 32.
Nf1 {[%clk 0:00:08.1]} 32... Rc2+ {[%clk 0:00:51.2]} 33. Ke3 {[%clk 0:00:08.7]}
33... Kd6 {[%clk 0:00:48.5]} 34. Nd2 {[%clk 0:00:08.8]} 34... Kc5 {[%clk
0:00:47.6]} 35. f4 {[%clk 0:00:09]} 35... f6 {[%clk 0:00:47.4]} 36. fxe5 {[%clk
0:00:09.2]} 36... fxe5 {[%clk 0:00:48.3]} 37. Rf1 {[%clk 0:00:09.5]} 37... Rc3+
{[%clk 0:00:47.1]} 38. Ke2 {[%clk 0:00:09.4]} 38... Nc1+ {[%clk 0:00:46.8]} 39.
Kd1 {[%clk 0:00:09.4]} 39... Ncd3 {[%clk 0:00:45.1]} 40. Rf7 {[%clk 0:00:10]}
40... Rc1+ {[%clk 0:00:43.5]} 41. Ke2 {[%clk 0:00:10.6]} 41... Re1+ {[%clk
0:00:43.3]} 42. Kf3 {[%clk 0:00:10.1]} 42... g5 {[%clk 0:00:35.3]} 43. Kg4
{[%clk 0:00:08.8]} 43... Nc6 {[%clk 0:00:31.5]} 44. Kh5 {[%clk 0:00:09]} 44...
Re2 {[%clk 0:00:31.7]} 45. Nf3 {[%clk 0:00:09.1]} 45... b5 {[%clk 0:00:29.5]}
46. Kxh6 {[%clk 0:00:09.5]} 46... b4 {[%clk 0:00:30]} 47. Kxg5 {[%clk
0:00:09.8]} 47... b3 {[%clk 0:00:30.1]} 48. Rb7 {[%clk 0:00:10.5]} 48... Ndb4
{[%clk 0:00:28]} 49. Rc7 {[%clk 0:00:04.2]} 49... b2 {[%clk 0:00:27]} 50. Nxe5
{[%clk 0:00:04.7]} 50... b1=Q {[%clk 0:00:25.9]} 51. Nxc6 {[%clk 0:00:04.5]}
51... Nxc6 {[%clk 0:00:25.5]} 52. Re7 {[%clk 0:00:05.4]} 52... Rxe4 {[%clk
0:00:24.9]} 0-1

[Event "*** Titled Tuesday Blitz"]
[Site "Chess.com"]
[Date "2021.03.30"]
[Round "9"]
[White "Perecke"]
[Black "lucachess49"]
[Result "0-1"]
[WhiteElo "2298"]
[BlackElo "2440"]
[TimeControl "180+1"]
[EndTime "11:47:27 PDT"]
[Termination "lucachess49 won on time"]

1. e4 {[%clk 0:02:59.3]} 1... e5 {[%clk 0:02:58.1]} 2. Nf3 {[%clk 0:02:59.3]}
2... Nc6 {[%clk 0:02:58.1]} 3. Bb5 {[%clk 0:02:58.5]} 3... a6 {[%clk 0:02:57.6]}
4. Ba4 {[%clk 0:02:57.6]} 4... Nf6 {[%clk 0:02:55.3]} 5. O-O {[%clk 0:02:57.7]}
5... Be7 {[%clk 0:02:51.4]} 6. Re1 {[%clk 0:02:56.8]} 6... b5 {[%clk 0:02:51.2]}
7. Bb3 {[%clk 0:02:52.1]} 7... d6 {[%clk 0:02:51.3]} 8. c3 {[%clk 0:02:50]} 8...
O-O {[%clk 0:02:48.9]} 9. h3 {[%clk 0:02:50.2]} 9... Na5 {[%clk 0:02:42.7]} 10.
Bc2 {[%clk 0:02:48.4]} 10... c5 {[%clk 0:02:43]} 11. d4 {[%clk 0:02:47.9]} 11...
Qc7 {[%clk 0:02:42.8]} 12. Nbd2 {[%clk 0:02:41.6]} 12... Nc6 {[%clk 0:02:39.7]}
13. a3 {[%clk 0:02:29.8]} 13... Bd7 {[%clk 0:02:13.1]} 14. d5 {[%clk 0:02:29.8]}
14... Nd8 {[%clk 0:02:09.8]} 15. Nf1 {[%clk 0:02:29.5]} 15... Ne8 {[%clk
0:02:07.3]} 16. g4 {[%clk 0:02:12.4]} 16... g6 {[%clk 0:02:02.7]} 17. Ng3 {[%clk
0:02:12.2]} 17... Ng7 {[%clk 0:02:01.7]} 18. Bh6 {[%clk 0:01:50.5]} 18... f6
{[%clk 0:01:58.3]} 19. Kh2 {[%clk 0:01:45.2]} 19... Nf7 {[%clk 0:01:57.7]} 20.
Be3 {[%clk 0:01:42.1]} 20... Ng5 {[%clk 0:01:07.2]} 21. h4 {[%clk 0:01:28.9]}
21... Bxg4 {[%clk 0:00:57.1]} 22. hxg5 {[%clk 0:01:19.8]} 22... fxg5 {[%clk
0:00:57.1]} 23. Bxg5 {[%clk 0:01:20.7]} 23... Bxf3 {[%clk 0:00:55.9]} 24. Qd2
{[%clk 0:01:18.9]} 24... Bxg5 {[%clk 0:00:50.7]} 25. Qxg5 {[%clk 0:01:19.8]}
25... Qd8 {[%clk 0:00:51]} 26. Qxd8 {[%clk 0:01:16.3]} 26... Raxd8 {[%clk
0:00:51.9]} 27. a4 {[%clk 0:01:13.6]} 27... b4 {[%clk 0:00:51.4]} 28. cxb4
{[%clk 0:01:12.6]} 28... cxb4 {[%clk 0:00:52.3]} 29. Bd3 {[%clk 0:01:12.8]}
29... a5 {[%clk 0:00:52.7]} 30. Rac1 {[%clk 0:01:12.3]} 30... Rc8 {[%clk
0:00:51.4]} 31. Rc6 {[%clk 0:01:12.2]} 31... Rxc6 {[%clk 0:00:43.4]} 32. dxc6
{[%clk 0:01:13.1]} 32... Rc8 {[%clk 0:00:43.5]} 33. Rc1 {[%clk 0:01:12]} 33...
Ne6 {[%clk 0:00:39]} 34. Nf1 {[%clk 0:00:52.8]} 34... Nc5 {[%clk 0:00:38.4]} 35.
Bb5 {[%clk 0:00:42.8]} 35... Bxe4 {[%clk 0:00:35.3]} 36. Rd1 {[%clk 0:00:42.9]}
36... Bxc6 {[%clk 0:00:19.4]} 37. Rxd6 {[%clk 0:00:42.1]} 37... Bxb5 {[%clk
0:00:19.5]} 38. axb5 {[%clk 0:00:43]} 38... Rb8 {[%clk 0:00:19.5]} 39. b6 {[%clk
0:00:43.5]} 39... a4 {[%clk 0:00:18.9]} 40. Ne3 {[%clk 0:00:29.4]} 40... a3
{[%clk 0:00:18.9]} 41. bxa3 {[%clk 0:00:29.3]} 41... bxa3 {[%clk 0:00:19.1]} 42.
Nc2 {[%clk 0:00:29.1]} 42... a2 {[%clk 0:00:18.7]} 43. Na1 {[%clk 0:00:17.4]}
43... Kf7 {[%clk 0:00:16.5]} 44. Rd2 {[%clk 0:00:12.3]} 44... Rxb6 {[%clk
0:00:15.7]} 45. Rxa2 {[%clk 0:00:12.1]} 45... Ne4 {[%clk 0:00:14.7]} 46. f3
{[%clk 0:00:09.2]} 46... Ng5 {[%clk 0:00:14.4]} 47. Rf2 {[%clk 0:00:06]} 47...
Kf6 {[%clk 0:00:13.8]} 48. Nc2 {[%clk 0:00:04.6]} 48... Rb2 {[%clk 0:00:13.8]}
49. Kg3 {[%clk 0:00:01.8]} 49... Ne6 {[%clk 0:00:13.8]} 0-1

[Event "*** Titled Tuesday Blitz"]
[Site "Chess.com"]
[Date "2021.03.30"]
[Round "9"]
[White "anon219"]
[Black "MarcoRiehle"]
[Result "1-0"]
[WhiteElo "2860"]
[BlackElo "2708"]
[TimeControl "180+1"]
[EndTime "11:47:28 PDT"]
[Termination "anon219 won by resignation"]

1. e4 {[%clk 0:03:00.9]} 1... e5 {[%clk 0:02:57.6]} 2. Nf3 {[%clk 0:03:00.6]}
2... Nf6 {[%clk 0:02:52.9]} 3. Nxe5 {[%clk 0:03:00]} 3... Nxe4 {[%clk
0:02:52.6]} 4. Qe2 {[%clk 0:02:59.2]} 4... Qe7 {[%clk 0:02:52.6]} 5. Qxe4 {[%clk
0:02:58.3]} 5... d6 {[%clk 0:02:52.9]} 6. d4 {[%clk 0:02:58.8]} 6... dxe5 {[%clk
0:02:53.2]} 7. dxe5 {[%clk 0:02:59.2]} 7... Nc6 {[%clk 0:02:53.3]} 8. f4 {[%clk
0:02:51.3]} 8... Bg4 {[%clk 0:02:49.5]} 9. Nc3 {[%clk 0:02:49.4]} 9... O-O-O
{[%clk 0:02:44.9]} 10. Be2 {[%clk 0:02:42.3]} 10... Bxe2 {[%clk 0:02:30.8]} 11.
Nxe2 {[%clk 0:02:35.1]} 11... Qh4+ {[%clk 0:02:26.1]} 12. g3 {[%clk 0:02:28.1]}
12... Qh3 {[%clk 0:02:25.4]} 13. Be3 {[%clk 0:02:25.6]} 13... Be7 {[%clk
0:02:04]} 14. Kf2 {[%clk 0:02:17.4]} 14... h5 {[%clk 0:02:02.2]} 15. c3 {[%clk
0:02:12.8]} 15... h4 {[%clk 0:01:59.7]} 16. b4 {[%clk 0:02:11.6]} 16... f5
{[%clk 0:01:46.6]} 17. Qg2 {[%clk 0:02:08.1]} 17... Qg4 {[%clk 0:01:42]} 18. Qf3
{[%clk 0:02:08.4]} 18... Qxf3+ {[%clk 0:01:14.9]} 19. Kxf3 {[%clk 0:02:07.7]}
19... g5 {[%clk 0:01:15.8]} 20. b5 {[%clk 0:01:54.6]} 20... g4+ {[%clk
0:01:15.1]} 21. Kf2 {[%clk 0:01:54.8]} 21... Na5 {[%clk 0:01:13.6]} 22. Nd4
{[%clk 0:01:55.1]} 22... Bc5 {[%clk 0:01:09.1]} 23. gxh4 {[%clk 0:01:35.8]}
23... Nc4 {[%clk 0:01:03.8]} 24. Rad1 {[%clk 0:01:32.1]} 24... Nxe3 {[%clk
0:01:01.9]} 25. Kxe3 {[%clk 0:01:27.3]} 25... Rxh4 {[%clk 0:01:02.2]} 26. Kd3
{[%clk 0:01:27.3]} 26... Bxd4 {[%clk 0:00:43.7]} 27. cxd4 {[%clk 0:01:26]} 27...
Rh3+ {[%clk 0:00:44.6]} 28. Kc4 {[%clk 0:01:10.3]} 28... Ra3 {[%clk 0:00:40.9]}
29. Rd2 {[%clk 0:01:02.2]} 29... Rf3 {[%clk 0:00:40.3]} 30. e6 {[%clk
0:00:59.7]} 30... Re3 {[%clk 0:00:26]} 31. d5 {[%clk 0:00:57.7]} 31... Rxe6
{[%clk 0:00:26.1]} 32. dxe6 {[%clk 0:00:55.3]} 32... Rxd2 {[%clk 0:00:27]} 33.
h3 {[%clk 0:00:52.1]} 33... g3 {[%clk 0:00:23.6]} 34. Rg1 {[%clk 0:00:49.9]}
34... g2 {[%clk 0:00:21.1]} 35. h4 {[%clk 0:00:48.4]} 35... Kd8 {[%clk 0:00:21]}
36. h5 {[%clk 0:00:47.2]} 36... Ke7 {[%clk 0:00:21.4]} 37. h6 {[%clk 0:00:45.3]}
37... Rf2 {[%clk 0:00:14.4]} 38. Kd5 {[%clk 0:00:42]} 38... c6+ {[%clk
0:00:09.8]} 39. bxc6 {[%clk 0:00:39.6]} 39... bxc6+ {[%clk 0:00:10.7]} 40. Kxc6
{[%clk 0:00:39.2]} 40... Rxf4 {[%clk 0:00:09.9]} 41. Rxg2 {[%clk 0:00:37.1]}
41... Kxe6 {[%clk 0:00:09]} 42. Rh2 {[%clk 0:00:34.7]} 42... Rc4+ {[%clk
0:00:08.9]} 43. Kb7 {[%clk 0:00:34.9]} 43... Rb4+ {[%clk 0:00:09.1]} 44. Ka8
{[%clk 0:00:30.9]} 44... Rd4 {[%clk 0:00:09]} 45. h7 {[%clk 0:00:30.9]} 45...
Rd8+ {[%clk 0:00:09.5]} 46. Kxa7 {[%clk 0:00:26.6]} 46... Rh8 {[%clk 0:00:10.4]}
47. a4 {[%clk 0:00:26.6]} 47... f4 {[%clk 0:00:08.7]} 48. a5 {[%clk 0:00:24.3]}
48... Kf6 {[%clk 0:00:08]} 49. a6 {[%clk 0:00:22.9]} 49... Kg6 {[%clk 0:00:08]}
50. Kb7 {[%clk 0:00:21.5]} 50... f3 {[%clk 0:00:07.2]} 51. a7 {[%clk 0:00:19.8]}
51... f2 {[%clk 0:00:04.4]} 52. Rxf2 {[%clk 0:00:19.9]} 52... Rxh7+ {[%clk
0:00:05]} 53. Ka6 {[%clk 0:00:20]} 53... Rh1 {[%clk 0:00:04.4]} 54. a8=Q {[%clk
0:00:19.6]} 1-0

[Event "*** Titled Tuesday Blitz"]
[Site "Chess.com"]
[Date "2021.03.30"]
[Round "9"]
[White "KaterynaLagno"]
[Black "Ermito2020"]
[Result "0-1"]
[WhiteElo "2679"]
[BlackElo "2549"]
[TimeControl "180+1"]
[EndTime "11:47:30 PDT"]
[Termination "Ermito2020 won on time"]

1. e4 {[%clk 0:03:00.9]} 1... c5 {[%clk 0:02:59]} 2. Nf3 {[%clk 0:03:00.7]} 2...
d6 {[%clk 0:02:58.9]} 3. Bb5+ {[%clk 0:03:00.7]} 3... Nd7 {[%clk 0:02:58.3]} 4.
Ba4 {[%clk 0:03:00.4]} 4... a6 {[%clk 0:02:56.6]} 5. c3 {[%clk 0:03:00.5]} 5...
b5 {[%clk 0:02:56.1]} 6. Bc2 {[%clk 0:03:00.3]} 6... e5 {[%clk 0:02:54.3]} 7. d4
{[%clk 0:02:59.5]} 7... Ngf6 {[%clk 0:02:52.4]} 8. O-O {[%clk 0:02:58.6]} 8...
Be7 {[%clk 0:02:51.8]} 9. Nbd2 {[%clk 0:02:54.6]} 9... Bb7 {[%clk 0:02:50.2]}
10. Re1 {[%clk 0:02:54.7]} 10... O-O {[%clk 0:02:50]} 11. Nf1 {[%clk 0:02:53.7]}
11... cxd4 {[%clk 0:02:48.5]} 12. cxd4 {[%clk 0:02:53.6]} 12... Rc8 {[%clk
0:02:48.3]} 13. d5 {[%clk 0:02:49.9]} 13... Re8 {[%clk 0:02:39.9]} 14. Ng3
{[%clk 0:02:49.1]} 14... Bf8 {[%clk 0:02:40.3]} 15. Bd2 {[%clk 0:02:42]} 15...
g6 {[%clk 0:02:38.3]} 16. a4 {[%clk 0:02:36.6]} 16... Nc5 {[%clk 0:02:30.2]} 17.
axb5 {[%clk 0:02:34]} 17... axb5 {[%clk 0:02:31.1]} 18. Ba5 {[%clk 0:02:30.9]}
18... Qe7 {[%clk 0:02:27]} 19. b4 {[%clk 0:02:29.9]} 19... Ncd7 {[%clk
0:02:21.9]} 20. Bd3 {[%clk 0:02:26.3]} 20... Ba6 {[%clk 0:02:14.1]} 21. Qe2
{[%clk 0:02:23.7]} 21... h5 {[%clk 0:01:34]} 22. Bxb5 {[%clk 0:02:21.2]} 22...
Bxb5 {[%clk 0:01:34]} 23. Qxb5 {[%clk 0:02:22.1]} 23... h4 {[%clk 0:01:34.2]}
24. Nxh4 {[%clk 0:02:18.1]} 24... Ng4 {[%clk 0:01:32.3]} 25. Nf3 {[%clk
0:02:17]} 25... Bh6 {[%clk 0:01:31.1]} 26. h3 {[%clk 0:02:15.6]} 26... Ngf6
{[%clk 0:01:30.3]} 27. Qe2 {[%clk 0:02:11.9]} 27... Bf4 {[%clk 0:01:29.5]} 28.
b5 {[%clk 0:02:10]} 28... Kg7 {[%clk 0:01:28.3]} 29. b6 {[%clk 0:02:08.7]} 29...
Rb8 {[%clk 0:01:27.7]} 30. Reb1 {[%clk 0:02:08.6]} 30... Rb7 {[%clk 0:01:27.1]}
31. Bd2 {[%clk 0:01:37]} 31... Nc5 {[%clk 0:01:25.9]} 32. Rb5 {[%clk 0:01:22.4]}
32... Reb8 {[%clk 0:01:22.4]} 33. Rab1 {[%clk 0:01:22.1]} 33... Nfd7 {[%clk
0:01:17.4]} 34. Bxf4 {[%clk 0:01:06.8]} 34... exf4 {[%clk 0:01:17]} 35. Qb2+
{[%clk 0:01:07.4]} 35... Kg8 {[%clk 0:01:14.8]} 36. Ne2 {[%clk 0:01:01.6]} 36...
Qxe4 {[%clk 0:01:14.2]} 37. Nc3 {[%clk 0:00:52.7]} 37... Qe7 {[%clk 0:01:13.6]}
38. Nd4 {[%clk 0:00:51.2]} 38... Qf6 {[%clk 0:01:08.5]} 39. Nc6 {[%clk 0:00:50]}
39... Re8 {[%clk 0:01:05]} 40. Qd2 {[%clk 0:00:30]} 40... f3 {[%clk 0:01:00.2]}
41. Re1 {[%clk 0:00:26.1]} 41... Rxe1+ {[%clk 0:00:54.1]} 42. Qxe1 {[%clk
0:00:27]} 42... Rxb6 {[%clk 0:00:54.7]} 43. Rxb6 {[%clk 0:00:23.9]} 43... Nxb6
{[%clk 0:00:53.3]} 44. Ne4 {[%clk 0:00:18.4]} 44... Qb2 {[%clk 0:00:44.8]} 45.
Nxd6 {[%clk 0:00:14.6]} 45... Qe2 {[%clk 0:00:37.6]} 46. Qa1 {[%clk 0:00:10.8]}
46... Nxd5 {[%clk 0:00:30.8]} 47. Qd4 {[%clk 0:00:06]} 47... Nd3 {[%clk
0:00:24.9]} 48. gxf3 {[%clk 0:00:03.9]} 48... N5f4 {[%clk 0:00:21.6]} 49. Qe4
{[%clk 0:00:02.1]} 49... Qxf2+ {[%clk 0:00:19.6]} 0-1